[Event "Titled Tuesday Blitz July 18 Late 2023"]
[White "Eggleston, Thomas A"]
[Black "Urbina Perez, Juan Antonio"]
[WhiteFideId "412139"]
[BlackFideId "2217368"]
[WhiteElo "2376"]
[BlackElo "2509"]
[Result "0-1"]
[Round "9"]
[TimeControl "180+2"]
[Date "2023.07.18"]
[WhiteClock "0:00:10"]
[BlackClock "0:00:19"]
[Board "73"]

1. e4 {[%clk 0:03:00]}  c5 {[%clk 0:02:59]} 2. Nf3 {[%clk 0:03:00]}  d6 {[%clk 0:03:00]} 3. Bc4 {[%clk 0:02:58]}  Nf6 {[%clk 0:02:59]} 4. d3 {[%clk 0:02:58]}  Nc6 {[%clk 0:02:58]} 5. O-O {[%clk 0:02:58]}  Na5 {[%clk 0:02:52]} 6. Bb5+ {[%clk 0:02:58]}  Bd7 {[%clk 0:02:52]} 7. Bxd7+ {[%clk 0:02:56]}  Qxd7 {[%clk 0:02:52]} 8. Re1 {[%clk 0:02:55]}  Nc6 {[%clk 0:02:51]} 9. c3 {[%clk 0:02:54]}  e6 {[%clk 0:02:51]} 10. d4 {[%clk 0:02:54]}  cxd4 {[%clk 0:02:49]} 11. cxd4 {[%clk 0:02:54]}  d5 {[%clk 0:02:49]} 12. e5 {[%clk 0:02:40]}  Ne4 {[%clk 0:02:49]} 13. Be3 {[%clk 0:02:40]}  Be7 {[%clk 0:02:48]} 14. Nc3 {[%clk 0:02:11]}  Nxc3 {[%clk 0:02:47]} 15. bxc3 {[%clk 0:02:11]}  O-O {[%clk 0:02:48]} 16. h4 {[%clk 0:02:07]}  Na5 {[%clk 0:02:48]} 17. Ng5 {[%clk 0:02:04]}  h6 {[%clk 0:02:45]} 18. Nf3 {[%clk 0:02:02]}  Rac8 {[%clk 0:02:42]} 19. Rc1 {[%clk 0:01:56]}  Rc7 {[%clk 0:02:42]} 20. Nd2 {[%clk 0:01:51]}  Rfc8 {[%clk 0:02:41]} 21. Qg4 {[%clk 0:01:49]}  Kh8 {[%clk 0:02:38]} 22. Nb1 {[%clk 0:01:38]}  Qa4 {[%clk 0:02:28]} 23. Qh5 {[%clk 0:01:36]}  Kg8 {[%clk 0:02:27]} 24. Bxh6 {[%clk 0:01:32]}  gxh6 {[%clk 0:02:25]} 25. Re3 {[%clk 0:01:25]}  Kf8 {[%clk 0:01:48]} 26. Rf3 {[%clk 0:01:20]}  Ba3 {[%clk 0:01:46]} 27. Qxh6+ {[%clk 0:00:55]}  Ke8 {[%clk 0:01:46]} 28. Nxa3 {[%clk 0:00:39]}  Qxa3 {[%clk 0:01:42]} 29. Re1 {[%clk 0:00:25]}  Rxc3 {[%clk 0:01:37]} 30. Qh8+ {[%clk 0:00:24]}  Qf8 {[%clk 0:01:35]} 31. Qf6 {[%clk 0:00:22]}  Rxf3 {[%clk 0:01:34]} 32. Qxf3 {[%clk 0:00:22]}  Nc4 {[%clk 0:01:33]} 33. h5 {[%clk 0:00:20]}  Kd7 {[%clk 0:01:30]} 34. Qf6 {[%clk 0:00:18]}  Qe7 {[%clk 0:01:23]} 35. Qg7 {[%clk 0:00:17]}  Qf8 {[%clk 0:01:19]} 36. Qf6 {[%clk 0:00:17]}  Nd2 {[%clk 0:01:18]} 37. h6 {[%clk 0:00:16]}  Ne4 {[%clk 0:01:18]} 38. Qh4 {[%clk 0:00:13]}  Qe7 {[%clk 0:01:18]} 39. Qh5 {[%clk 0:00:12]}  Rh8 {[%clk 0:01:12]} 40. h7 {[%clk 0:00:12]}  f5 {[%clk 0:01:06]} 41. exf6 {[%clk 0:00:08]}  Nxf6 {[%clk 0:01:05]} 42. Qe5 {[%clk 0:00:07]}  Rxh7 {[%clk 0:00:58]} 43. Rc1 {[%clk 0:00:08]}  Ke8 {[%clk 0:00:55]} 44. Rc8+ {[%clk 0:00:07]}  Kf7 {[%clk 0:00:56]} 45. Qg3 {[%clk 0:00:05]}  Rg7 {[%clk 0:00:53]} 46. Qf4 {[%clk 0:00:04]}  Kg6 {[%clk 0:00:46]} 47. Qg3+ {[%clk 0:00:04]}  Kf7 {[%clk 0:00:34]} 48. Qf4 {[%clk 0:00:05]}  Qa3 {[%clk 0:00:19]} 49. Rc7+ {[%clk 0:00:04]}  Kg6 {[%clk 0:00:18]} 50. Qg3+ {[%clk 0:00:04]}  Qxg3 {[%clk 0:00:18]} 51. Rxg7+ {[%clk 0:00:04]}  Kxg7 {[%clk 0:00:19]} 52. fxg3 {[%clk 0:00:04]}  Ne4 {[%clk 0:00:18]} 53. g4 {[%clk 0:00:05]}  Kf6 {[%clk 0:00:18]} 54. Kf1 {[%clk 0:00:05]}  Kg5 {[%clk 0:00:18]} 55. Ke2 {[%clk 0:00:06]}  Kxg4 {[%clk 0:00:19]} 56. Ke3 {[%clk 0:00:06]}  Kg3 {[%clk 0:00:18]} 57. a4 {[%clk 0:00:06]}  b6 {[%clk 0:00:18]} 58. Kd3 {[%clk 0:00:06]}  a6 {[%clk 0:00:18]} 59. Ke3 {[%clk 0:00:06]}  b5 {[%clk 0:00:19]} 60. axb5 {[%clk 0:00:07]}  axb5 {[%clk 0:00:20]} 61. Kd3 {[%clk 0:00:07]}  Kxg2 {[%clk 0:00:19]} 62. Ke3 {[%clk 0:00:07]}  Kg3 {[%clk 0:00:20]} 63. Kd3 {[%clk 0:00:08]}  Kf3 {[%clk 0:00:20]} 64. Kc2 {[%clk 0:00:07]}  Ke3 {[%clk 0:00:20]} 65. Kb3 {[%clk 0:00:08]}  Kxd4 {[%clk 0:00:20]} 66. Kb4 {[%clk 0:00:08]}  Ke3 {[%clk 0:00:21]} 67. Kxb5 {[%clk 0:00:09]}  d4 {[%clk 0:00:22]} 68. Kc4 {[%clk 0:00:09]}  d3 {[%clk 0:00:23]} 69. Kb5 {[%clk 0:00:08]}  d2 {[%clk 0:00:23]} 70. Ka4 {[%clk 0:00:08]}  d1=Q+ {[%clk 0:00:23]} 71. Ka3 {[%clk 0:00:09]}  Kd3 {[%clk 0:00:21]} 72. Kb2 {[%clk 0:00:09]}  Qc2+ {[%clk 0:00:20]} 73. Ka1 {[%clk 0:00:09]}  Qd2 {[%clk 0:00:20]} 74. Kb1 {[%clk 0:00:09]}  Nc3+ {[%clk 0:00:19]} 75. Ka1 {[%clk 0:00:10]}  Qa2# {[%clk 0:00:19]} 0-1


[Site "https://www.chess.com"]

[Event "Titled Tuesday Blitz July 18 Late 2023"]
[White "Hnydiuk, Aleksander"]
[Black "Adireddy Arjun"]
[WhiteFideId "1109057"]
[BlackFideId "25647709"]
[WhiteElo "2507"]
[BlackElo "2369"]
[Result "1-0"]
[Round "9"]
[TimeControl "180+2"]
[Date "2023.07.18"]
[WhiteClock "0:00:02"]
[BlackClock "0:00:01"]
[Board "74"]

1. d4 {[%clk 0:03:00]}  Nf6 {[%clk 0:02:57]} 2. c4 {[%clk 0:03:00]}  g6 {[%clk 0:02:57]} 3. Nc3 {[%clk 0:02:54]}  Bg7 {[%clk 0:02:57]} 4. e4 {[%clk 0:02:54]}  O-O {[%clk 0:02:56]} 5. Nf3 {[%clk 0:02:53]}  d6 {[%clk 0:02:50]} 6. Be2 {[%clk 0:02:53]}  e5 {[%clk 0:02:48]} 7. O-O {[%clk 0:02:53]}  exd4 {[%clk 0:02:48]} 8. Nxd4 {[%clk 0:02:52]}  Nbd7 {[%clk 0:02:45]} 9. Be3 {[%clk 0:02:50]}  Re8 {[%clk 0:02:42]} 10. f3 {[%clk 0:02:49]}  Nb6 {[%clk 0:02:28]} 11. Qd2 {[%clk 0:02:48]}  Be6 {[%clk 0:02:28]} 12. b3 {[%clk 0:02:40]}  Nbd7 {[%clk 0:02:09]} 13. Rac1 {[%clk 0:02:38]}  a6 {[%clk 0:02:05]} 14. Rfd1 {[%clk 0:02:38]}  Qe7 {[%clk 0:02:01]} 15. Nd5 {[%clk 0:02:36]}  Bxd5 {[%clk 0:01:57]} 16. cxd5 {[%clk 0:02:34]}  Nxd5 {[%clk 0:01:46]} 17. Bf2 {[%clk 0:02:34]}  Rac8 {[%clk 0:01:21]} 18. Bxa6 {[%clk 0:02:25]}  bxa6 {[%clk 0:01:19]} 19. Nc6 {[%clk 0:02:24]}  Qe6 {[%clk 0:01:10]} 20. Qxd5 {[%clk 0:02:24]}  Qxd5 {[%clk 0:01:06]} 21. Rxd5 {[%clk 0:02:25]}  Ne5 {[%clk 0:00:59]} 22. Bg3 {[%clk 0:02:04]}  Nd7 {[%clk 0:00:52]} 23. Ra5 {[%clk 0:01:42]}  Ra8 {[%clk 0:00:48]} 24. Bf2 {[%clk 0:01:40]}  Kf8 {[%clk 0:00:36]} 25. Nb4 {[%clk 0:01:39]}  c5 {[%clk 0:00:32]} 26. Nd5 {[%clk 0:01:36]}  Rec8 {[%clk 0:00:28]} 27. Bg3 {[%clk 0:01:28]}  Be5 {[%clk 0:00:24]} 28. Bxe5 {[%clk 0:01:27]}  dxe5 {[%clk 0:00:25]} 29. Rc4 {[%clk 0:01:23]}  Ke8 {[%clk 0:00:18]} 30. Kf2 {[%clk 0:01:16]}  Kd8 {[%clk 0:00:16]} 31. Ke3 {[%clk 0:01:16]}  Rc6 {[%clk 0:00:14]} 32. b4 {[%clk 0:01:13]}  Rac8 {[%clk 0:00:15]} 33. bxc5 {[%clk 0:01:08]}  Nxc5 {[%clk 0:00:13]} 34. Nb4 {[%clk 0:01:04]}  R6c7 {[%clk 0:00:13]} 35. Rc1 {[%clk 0:00:50]}  Ke8 {[%clk 0:00:08]} 36. Nd5 {[%clk 0:00:48]}  Rc6 {[%clk 0:00:08]} 37. Nb4 {[%clk 0:00:48]}  R6c7 {[%clk 0:00:08]} 38. g4 {[%clk 0:00:47]}  h6 {[%clk 0:00:07]} 39. h4 {[%clk 0:00:47]}  g5 {[%clk 0:00:03]} 40. hxg5 {[%clk 0:00:46]}  hxg5 {[%clk 0:00:04]} 41. Rh1 {[%clk 0:00:45]}  Kd7 {[%clk 0:00:04]} 42. Rh7 {[%clk 0:00:45]}  Ke6 {[%clk 0:00:02]} 43. Nxa6 {[%clk 0:00:44]}  Nxa6 {[%clk 0:00:02]} 44. Rxa6+ {[%clk 0:00:45]}  Rc6 {[%clk 0:00:03]} 45. Rxc6+ {[%clk 0:00:43]}  Rxc6 {[%clk 0:00:04]} 46. Rh6+ {[%clk 0:00:43]}  f6 {[%clk 0:00:04]} 47. Rh2 {[%clk 0:00:25]}  Rc3+ {[%clk 0:00:03]} 48. Kf2 {[%clk 0:00:25]}  Ra3 {[%clk 0:00:03]} 49. Kg3 {[%clk 0:00:23]}  Kf7 {[%clk 0:00:03]} 50. Rc2 {[%clk 0:00:22]}  Kg6 {[%clk 0:00:03]} 51. Kf2 {[%clk 0:00:22]}  Kg7 {[%clk 0:00:03]} 52. Ke2 {[%clk 0:00:22]}  Kg6 {[%clk 0:00:03]} 53. Rd2 {[%clk 0:00:22]}  Kg7 {[%clk 0:00:03]} 54. Kf2 {[%clk 0:00:17]}  Kg6 {[%clk 0:00:03]} 55. Kg2 {[%clk 0:00:16]}  Kg7 {[%clk 0:00:04]} 56. Rd7+ {[%clk 0:00:16]}  Kg6 {[%clk 0:00:05]} 57. Rd2 {[%clk 0:00:16]}  Kg7 {[%clk 0:00:06]} 58. Rc2 {[%clk 0:00:16]}  Kg6 {[%clk 0:00:06]} 59. Rf2 {[%clk 0:00:15]}  Kg7 {[%clk 0:00:07]} 60. Kf1 {[%clk 0:00:16]}  Kg6 {[%clk 0:00:07]} 61. Ke1 {[%clk 0:00:16]}  Kg7 {[%clk 0:00:07]} 62. Kd1 {[%clk 0:00:16]}  Kf7 {[%clk 0:00:07]} 63. Kc1 {[%clk 0:00:16]}  Ke6 {[%clk 0:00:08]} 64. Kb2 {[%clk 0:00:17]}  Re3 {[%clk 0:00:08]} 65. a4 {[%clk 0:00:16]}  Kd6 {[%clk 0:00:09]} 66. a5 {[%clk 0:00:13]}  Kc6 {[%clk 0:00:09]} 67. Rc2+ {[%clk 0:00:13]}  Kb5 {[%clk 0:00:09]} 68. Rc3 {[%clk 0:00:13]}  Re2+ {[%clk 0:00:05]} 69. Kb3 {[%clk 0:00:13]}  Kxa5 {[%clk 0:00:05]} 70. Kc4 {[%clk 0:00:12]}  Rd2 {[%clk 0:00:03]} 71. Rb3 {[%clk 0:00:11]}  Rd1 {[%clk 0:00:02]} 72. Kc5 {[%clk 0:00:09]}  Ka4 {[%clk 0:00:02]} 73. Rb6 {[%clk 0:00:08]}  Rc1+ {[%clk 0:00:02]} 74. Kd5 {[%clk 0:00:08]}  Rd1+ {[%clk 0:00:02]} 75. Ke6 {[%clk 0:00:07]}  Rd3 {[%clk 0:00:03]} 76. Kxf6 {[%clk 0:00:05]}  Rxf3+ {[%clk 0:00:03]} 77. Kxg5 {[%clk 0:00:03]}  Rf4 {[%clk 0:00:02]} 78. Rb2 {[%clk 0:00:01]}  Rxe4 {[%clk 0:00:02]} 79. Kf5 {[%clk 0:00:01]}  Re1 {[%clk 0:00:03]} 80. g5 {[%clk 0:00:01]}  e4 {[%clk 0:00:04]} 81. g6 {[%clk 0:00:01]}  e3 {[%clk 0:00:04]} 82. Rg2 {[%clk 0:00:01]}  e2 {[%clk 0:00:03]} 83. Ke4 {[%clk 0:00:01]}  Rf1 {[%clk 0:00:01]} 84. Rxe2 {[%clk 0:00:01]}  Rg1 {[%clk 0:00:02]} 85. Kf5 {[%clk 0:00:01]}  Kb5 {[%clk 0:00:03]} 86. Kf6 {[%clk 0:00:01]}  Kc5 {[%clk 0:00:03]} 87. g7 {[%clk 0:00:01]}  Rf1+ {[%clk 0:00:04]} 88. Kg6 {[%clk 0:00:01]}  Rg1+ {[%clk 0:00:05]} 89. Kh7 {[%clk 0:00:02]}  Rh1+ {[%clk 0:00:05]} 90. Kg8 {[%clk 0:00:02]}  Kd6 {[%clk 0:00:03]} 91. Re3 {[%clk 0:00:02]}  Rg1 {[%clk 0:00:03]} 92. Re4 {[%clk 0:00:02]}  Kd7 {[%clk 0:00:02]} 93. Rh4 {[%clk 0:00:02]}  Ke7 {[%clk 0:00:02]} 94. Kh7 {[%clk 0:00:03]}  Kf7 {[%clk 0:00:03]} 95. g8=Q+ {[%clk 0:00:03]}  Ke7 {[%clk 0:00:01]} 96. Qxg1 {[%clk 0:00:02]} 1-0


[Site "https://www.chess.com"]

[Event "Titled Tuesday Blitz July 18 Late 2023"]
[White "Vifleemskaia, Svetlana"]
[Black "NigelDwarf"]
[WhiteFideId "4129490"]
[WhiteElo "2344"]
[BlackElo "2500"]
[Result "1/2-1/2"]
[Round "9"]
[TimeControl "180+2"]
[Date "2023.07.18"]
[WhiteClock "0:00:49"]
[BlackClock "0:00:50"]
[Board "75"]

1. d4 {[%clk 0:02:55]}  Nf6 {[%clk 0:02:59]} 2. c4 {[%clk 0:02:54]}  a6 {[%clk 0:02:59]} 3. Nc3 {[%clk 0:02:47]}  c5 {[%clk 0:02:59]} 4. d5 {[%clk 0:02:45]}  b5 {[%clk 0:02:58]} 5. b3 {[%clk 0:02:30]}  b4 {[%clk 0:02:54]} 6. Na4 {[%clk 0:02:19]}  d6 {[%clk 0:02:53]} 7. Bb2 {[%clk 0:02:19]}  g6 {[%clk 0:02:52]} 8. Nf3 {[%clk 0:02:16]}  Bg7 {[%clk 0:02:51]} 9. Qc2 {[%clk 0:02:17]}  Bf5 {[%clk 0:02:50]} 10. Qd2 {[%clk 0:02:16]}  O-O {[%clk 0:02:45]} 11. e3 {[%clk 0:02:14]}  Ne4 {[%clk 0:02:34]} 12. Qc1 {[%clk 0:02:12]}  e6 {[%clk 0:02:27]} 13. dxe6 {[%clk 0:02:07]}  fxe6 {[%clk 0:02:25]} 14. Bxg7 {[%clk 0:02:07]}  Kxg7 {[%clk 0:02:25]} 15. Qb2+ {[%clk 0:02:08]}  Kg8 {[%clk 0:02:24]} 16. Be2 {[%clk 0:02:05]}  Nd7 {[%clk 0:02:15]} 17. O-O {[%clk 0:02:02]}  Ndf6 {[%clk 0:02:01]} 18. Rad1 {[%clk 0:01:44]}  Qc7 {[%clk 0:01:51]} 19. Nh4 {[%clk 0:01:40]}  Kh8 {[%clk 0:01:35]} 20. f3 {[%clk 0:01:39]}  Ng5 {[%clk 0:01:29]} 21. e4 {[%clk 0:01:29]}  Bh3 {[%clk 0:01:29]} 22. gxh3 {[%clk 0:01:25]}  Nxh3+ {[%clk 0:01:28]} 23. Kh1 {[%clk 0:01:25]}  Qg7 {[%clk 0:01:22]} 24. Ng2 {[%clk 0:01:22]}  Rad8 {[%clk 0:01:16]} 25. e5 {[%clk 0:01:20]}  dxe5 {[%clk 0:01:13]} 26. Qxe5 {[%clk 0:01:18]}  Rxd1 {[%clk 0:01:13]} 27. Bxd1 {[%clk 0:01:17]}  Rd8 {[%clk 0:01:13]} 28. Qg3 {[%clk 0:01:09]}  Qh6 {[%clk 0:01:11]} 29. Nxc5 {[%clk 0:01:04]}  Rd2 {[%clk 0:01:00]} 30. Ne4 {[%clk 0:00:59]}  Nxe4 {[%clk 0:00:56]} 31. fxe4 {[%clk 0:00:59]}  Nf2+ {[%clk 0:00:56]} 32. Kg1 {[%clk 0:00:51]}  Nh3+ {[%clk 0:00:55]} 33. Kh1 {[%clk 0:00:49]}  Nf2+ {[%clk 0:00:54]} 34. Kg1 {[%clk 0:00:49]}  Nh3+ {[%clk 0:00:50]} 35. Kh1 {[%clk 0:00:49]} 1/2-1/2


[Site "https://www.chess.com"]

[Event "Titled Tuesday Blitz July 18 Late 2023"]
[White "Topalov, Aleksandar"]
[Black "Goffredo_Fofi"]
[WhiteFideId "925659"]
[WhiteElo "2380"]
[BlackElo "2517"]
[Result "0-1"]
[Round "9"]
[TimeControl "180+2"]
[Date "2023.07.18"]
[WhiteClock "0:00:00"]
[BlackClock "0:00:07"]
[Board "81"]

1. b3 {[%clk 0:03:00]}  g6 {[%clk 0:03:00]} 2. Bb2 {[%clk 0:02:59]}  Nf6 {[%clk 0:03:01]} 3. Bxf6 {[%clk 0:02:59]}  exf6 {[%clk 0:03:02]} 4. c4 {[%clk 0:02:59]}  d5 {[%clk 0:03:02]} 5. cxd5 {[%clk 0:02:59]}  Qxd5 {[%clk 0:03:03]} 6. e3 {[%clk 0:02:59]}  f5 {[%clk 0:02:58]} 7. Nc3 {[%clk 0:02:56]}  Qa5 {[%clk 0:02:57]} 8. a3 {[%clk 0:02:56]}  Bg7 {[%clk 0:02:58]} 9. b4 {[%clk 0:02:55]}  Qb6 {[%clk 0:02:56]} 10. d4 {[%clk 0:02:55]}  c6 {[%clk 0:02:35]} 11. Nge2 {[%clk 0:02:51]}  O-O {[%clk 0:02:35]} 12. g3 {[%clk 0:02:51]}  a5 {[%clk 0:02:33]} 13. Rb1 {[%clk 0:02:34]}  axb4 {[%clk 0:02:32]} 14. axb4 {[%clk 0:02:33]}  Re8 {[%clk 0:02:13]} 15. Bg2 {[%clk 0:02:33]}  Be6 {[%clk 0:02:13]} 16. O-O {[%clk 0:02:30]}  Bc4 {[%clk 0:02:12]} 17. Re1 {[%clk 0:02:28]}  Na6 {[%clk 0:02:03]} 18. Na4 {[%clk 0:01:50]}  Qd8 {[%clk 0:01:45]} 19. Nc5 {[%clk 0:01:46]}  Qe7 {[%clk 0:01:12]} 20. Qc2 {[%clk 0:01:40]}  Bxe2 {[%clk 0:01:08]} 21. Qxe2 {[%clk 0:01:20]}  Bxd4 {[%clk 0:01:00]} 22. Qc4 {[%clk 0:01:12]}  Bxc5 {[%clk 0:00:51]} 23. bxc5 {[%clk 0:01:11]}  Qxc5 {[%clk 0:00:51]} 24. Qb3 {[%clk 0:01:05]}  Ra7 {[%clk 0:00:48]} 25. Rec1 {[%clk 0:01:03]}  Qe7 {[%clk 0:00:39]} 26. Qb6 {[%clk 0:01:03]}  Rea8 {[%clk 0:00:38]} 27. Ra1 {[%clk 0:00:58]}  Qd8 {[%clk 0:00:23]} 28. Qb2 {[%clk 0:00:46]}  Nc7 {[%clk 0:00:20]} 29. Rxa7 {[%clk 0:00:41]}  Rxa7 {[%clk 0:00:21]} 30. Qb6 {[%clk 0:00:40]}  Qb8 {[%clk 0:00:14]} 31. Bxc6 {[%clk 0:00:37]}  Ne6 {[%clk 0:00:13]} 32. Rb1 {[%clk 0:00:26]}  Qa8 {[%clk 0:00:13]} 33. Bxb7 {[%clk 0:00:24]}  Qb8 {[%clk 0:00:13]} 34. Bd5 {[%clk 0:00:18]}  Qxb6 {[%clk 0:00:14]} 35. Rxb6 {[%clk 0:00:17]}  Ra1+ {[%clk 0:00:14]} 36. Kg2 {[%clk 0:00:16]}  Ng5 {[%clk 0:00:14]} 37. h4 {[%clk 0:00:14]}  Ne4 {[%clk 0:00:15]} 38. Rb7 {[%clk 0:00:14]}  Nd6 {[%clk 0:00:10]} 39. Rd7 {[%clk 0:00:11]}  Ne4 {[%clk 0:00:10]} 40. Rxf7 {[%clk 0:00:07]}  Kh8 {[%clk 0:00:10]} 41. Re7 {[%clk 0:00:05]}  Nf6 {[%clk 0:00:09]} 42. Re6 {[%clk 0:00:05]}  Nxd5 {[%clk 0:00:09]} 43. Rd6 {[%clk 0:00:04]}  Nc3 {[%clk 0:00:08]} 44. h5 {[%clk 0:00:00]}  Kg7 {[%clk 0:00:07]} 0-1


[Site "https://www.chess.com"]

[Event "Titled Tuesday Blitz July 18 Late 2023"]
[White "Berezin, Viktor"]
[Black "Todorovic, Bojan"]
[WhiteFideId "14107872"]
[BlackFideId "917087"]
[WhiteElo "2507"]
[BlackElo "2372"]
[Result "0-1"]
[Round "9"]
[TimeControl "180+2"]
[Date "2023.07.18"]
[WhiteClock "0:00:57"]
[BlackClock "0:01:45"]
[Board "82"]

1. d4 {[%clk 0:02:56]}  g6 {[%clk 0:02:58]} 2. Nf3 {[%clk 0:02:54]}  Bg7 {[%clk 0:02:58]} 3. g3 {[%clk 0:02:54]}  d6 {[%clk 0:02:56]} 4. Bg2 {[%clk 0:02:54]}  Nf6 {[%clk 0:02:57]} 5. O-O {[%clk 0:02:55]}  O-O {[%clk 0:02:57]} 6. a4 {[%clk 0:02:55]}  c5 {[%clk 0:02:49]} 7. a5 {[%clk 0:02:55]}  Nc6 {[%clk 0:02:40]} 8. a6 {[%clk 0:02:47]}  cxd4 {[%clk 0:02:14]} 9. Nxd4 {[%clk 0:02:36]}  Qc7 {[%clk 0:02:11]} 10. axb7 {[%clk 0:02:21]}  Bxb7 {[%clk 0:02:10]} 11. Nc3 {[%clk 0:02:21]}  Nxd4 {[%clk 0:02:04]} 12. Qxd4 {[%clk 0:02:20]}  Bxg2 {[%clk 0:01:59]} 13. Kxg2 {[%clk 0:02:21]}  Rfc8 {[%clk 0:01:55]} 14. Be3 {[%clk 0:02:03]}  Qb7+ {[%clk 0:01:52]} 15. Kg1 {[%clk 0:01:46]}  Qxb2 {[%clk 0:01:51]} 16. Ra2 {[%clk 0:01:04]}  Qxc3 {[%clk 0:01:48]} 17. Qxc3 {[%clk 0:00:56]}  Rxc3 {[%clk 0:01:47]} 18. Bd4 {[%clk 0:00:57]}  Rc4 {[%clk 0:01:46]} 19. Rfa1 {[%clk 0:00:57]}  Rxd4 {[%clk 0:01:45]} 0-1


[Site "https://www.chess.com"]

[Event "Titled Tuesday Blitz July 18 Late 2023"]
[White "Tomaszewski, Kacper"]
[Black "Rodriguez Santiago, Jaime"]
[WhiteFideId "1127373"]
[BlackFideId "3100898"]
[WhiteElo "2460"]
[BlackElo "2359"]
[Result "1-0"]
[Round "9"]
[TimeControl "180+2"]
[Date "2023.07.18"]
[WhiteClock "0:01:23"]
[BlackClock "0:00:10"]
[Board "84"]

1. Nf3 {[%clk 0:03:00]}  Nf6 {[%clk 0:02:58]} 2. c4 {[%clk 0:02:59]}  e6 {[%clk 0:02:57]} 3. Nc3 {[%clk 0:02:58]}  d5 {[%clk 0:02:57]} 4. d4 {[%clk 0:02:57]}  c5 {[%clk 0:02:56]} 5. cxd5 {[%clk 0:02:53]}  Nxd5 {[%clk 0:02:55]} 6. e4 {[%clk 0:02:51]}  Nxc3 {[%clk 0:02:56]} 7. bxc3 {[%clk 0:02:52]}  cxd4 {[%clk 0:02:56]} 8. cxd4 {[%clk 0:02:53]}  Bb4+ {[%clk 0:02:56]} 9. Bd2 {[%clk 0:02:53]}  Bxd2+ {[%clk 0:02:57]} 10. Qxd2 {[%clk 0:02:54]}  O-O {[%clk 0:02:57]} 11. Bc4 {[%clk 0:02:54]}  Nd7 {[%clk 0:02:57]} 12. O-O {[%clk 0:02:52]}  b6 {[%clk 0:02:57]} 13. Rfe1 {[%clk 0:02:50]}  Bb7 {[%clk 0:02:57]} 14. Rad1 {[%clk 0:02:50]}  Rc8 {[%clk 0:02:57]} 15. Bb3 {[%clk 0:02:50]}  h6 {[%clk 0:02:57]} 16. Re3 {[%clk 0:02:47]}  Nf6 {[%clk 0:02:53]} 17. Qe1 {[%clk 0:02:37]}  a5 {[%clk 0:02:25]} 18. d5 {[%clk 0:02:26]}  exd5 {[%clk 0:02:17]} 19. e5 {[%clk 0:02:26]}  Ng4 {[%clk 0:02:08]} 20. Red3 {[%clk 0:02:23]}  Re8 {[%clk 0:01:30]} 21. h3 {[%clk 0:02:19]}  Nxe5 {[%clk 0:01:29]} 22. Nxe5 {[%clk 0:02:19]}  f6 {[%clk 0:01:29]} 23. Bxd5+ {[%clk 0:02:17]}  Bxd5 {[%clk 0:01:29]} 24. Rxd5 {[%clk 0:02:17]}  Qc7 {[%clk 0:01:19]} 25. f4 {[%clk 0:02:08]}  fxe5 {[%clk 0:01:14]} 26. fxe5 {[%clk 0:02:08]}  Qc4 {[%clk 0:01:08]} 27. e6 {[%clk 0:02:00]}  Re7 {[%clk 0:00:50]} 28. R1d4 {[%clk 0:01:41]}  Qxa2 {[%clk 0:00:47]} 29. Rd8+ {[%clk 0:01:38]}  Rxd8 {[%clk 0:00:44]} 30. Rxd8+ {[%clk 0:01:38]}  Kh7 {[%clk 0:00:44]} 31. Qe4+ {[%clk 0:01:37]}  g6 {[%clk 0:00:43]} 32. Rd7 {[%clk 0:01:31]}  Qa1+ {[%clk 0:00:44]} 33. Kh2 {[%clk 0:01:30]}  Qg7 {[%clk 0:00:45]} 34. Qd5 {[%clk 0:01:25]}  Kg8 {[%clk 0:00:13]} 35. Qa8+ {[%clk 0:01:25]}  Qf8 {[%clk 0:00:12]} 36. Rd8 {[%clk 0:01:23]}  Re8 {[%clk 0:00:10]} 37. Rxe8 {[%clk 0:01:23]} 1-0


[Site "https://www.chess.com"]

[Event "Titled Tuesday Blitz July 18 Late 2023"]
[White "Deviprasath, Sharvesh"]
[Black "Kostiukov, Alexandr"]
[WhiteFideId "30938228"]
[BlackFideId "14108100"]
[WhiteElo "2441"]
[BlackElo "2355"]
[Result "1-0"]
[Round "9"]
[TimeControl "180+2"]
[Date "2023.07.18"]
[WhiteClock "0:02:19"]
[BlackClock "0:00:00"]
[Board "85"]

1. e4 {[%clk 0:02:56]}  c5 {[%clk 0:02:59]} 2. c3 {[%clk 0:02:56]}  g6 {[%clk 0:02:59]} 3. d4 {[%clk 0:02:56]}  cxd4 {[%clk 0:02:59]} 4. cxd4 {[%clk 0:02:56]}  d5 {[%clk 0:02:59]} 5. e5 {[%clk 0:02:57]}  Bg7 {[%clk 0:02:59]} 6. Nc3 {[%clk 0:02:56]}  Nh6 {[%clk 0:02:59]} 7. h4 {[%clk 0:02:55]}  Bg4 {[%clk 0:02:29]} 8. f3 {[%clk 0:02:55]}  Be6 {[%clk 0:02:14]} 9. h5 {[%clk 0:02:54]}  Nc6 {[%clk 0:02:07]} 10. hxg6 {[%clk 0:02:54]}  hxg6 {[%clk 0:02:06]} 11. Bb5 {[%clk 0:02:54]}  Nf5 {[%clk 0:01:55]} 12. Rxh8+ {[%clk 0:02:55]}  Bxh8 {[%clk 0:01:55]} 13. g4 {[%clk 0:02:53]}  Ng7 {[%clk 0:01:36]} 14. Nh3 {[%clk 0:02:54]}  f6 {[%clk 0:01:33]} 15. Qd3 {[%clk 0:02:37]}  Kf7 {[%clk 0:01:30]} 16. Nf4 {[%clk 0:02:36]}  f5 {[%clk 0:01:19]} 17. Bxc6 {[%clk 0:02:33]}  bxc6 {[%clk 0:01:18]} 18. Be3 {[%clk 0:02:25]}  g5 {[%clk 0:01:18]} 19. Nxe6 {[%clk 0:02:25]}  Kxe6 {[%clk 0:01:11]} 20. gxf5+ {[%clk 0:02:25]}  Nxf5 {[%clk 0:01:11]} 21. Bxg5 {[%clk 0:02:26]}  Qb6 {[%clk 0:01:01]} 22. O-O-O {[%clk 0:02:25]}  Rb8 {[%clk 0:01:00]} 23. b3 {[%clk 0:02:25]}  Qb4 {[%clk 0:00:49]} 24. Kb1 {[%clk 0:02:25]}  Rg8 {[%clk 0:00:43]} 25. f4 {[%clk 0:02:25]}  Bg7 {[%clk 0:00:00]} 26. Na4 {[%clk 0:02:19]} 1-0


[Site "https://www.chess.com"]